Cogmind - Beta 13 @@@ ROGUE MODE // 2024.05.01 @ 17:42:46 Player: dandone Result: Destroyed by G-34 Mercenary with Small Laser Performance ------------- Evolutions (1) 500 Regions Visited (2) 400 Robots Destroyed (25) 125 Value Destroyed (570) 570 Prototype IDs (0) 0 Alien Tech Used (0) 0 Bonus (0) 0 TOTAL SCORE: 1595 Bonus ------- None Cogmind --------- Core Integrity 0/400 Matter 300/300 Energy 207/265 System Corruption 0% Temperature Cool (12) Movement Walking (190) Ox1 Location -9/Materials Parts ------- > --- POWER (3) -------- Improved Ion Engine > --- PROPULSION (2) --- Aluminum Leg Aluminum Leg > --- UTILITY (2) ------ Large Storage Unit Visual Processing Unit > --- WEAPON (2) ------- Heavy Assault Rifle > --- INVENTORY (15) --- Compact Wheel Small Storage Unit Peak State ------------ > --- POWER ------------ Light Ion Engine Light Ion Engine > --- PROPULSION ------- Light Treads > --- UTILITY ---------- Large Storage Unit Visual Processing Unit > --- WEAPON ----------- Medium Laser Particle Gun > --- INVENTORY -------- Wheel Compact Wheel Small Storage Unit Small Laser Light Assault Rifle [Rating: 9] Favorites ----------- Power Light Ion Engine Engine Light Ion Engine Propulsion Aluminum Leg Treads Light Treads Leg Aluminum Leg Wheel Compact Wheel Utility Small Storage Unit Storage Small Storage Unit Processor Signal Interpreter Weapon Medium Laser Energy Gun Medium Laser Ballistic Gun Light Assault Rifle Build | -11 -10 -9 ------- Run | Yrd Mat Mat Slots Evolved 2 | . . 2 Power 2 | . . 2 Propulsion . | . . . Utility . | . . . Weapon . | . . . Parts Attached 23 | . 6 17 Power 4 | . 1 3 Engine 4 | . 1 3 Core . | . . . Reactor . | . . . Propulsion 8 | . 2 6 Treads 3 | . 2 1 Leg 3 | . . 3 Wheel 2 | . . 2 Hover . | . . . Flight . | . . . Utility 3 | . 1 2 Device . | . . . Storage 1 | . . 1 Processor 2 | . 1 1 Hackware . | . . . Protection . | . . . Artifact . | . . . Weapon 8 | . 2 6 Energy Gun 4 | . 1 3 Energy Cannon . | . . . Ballistic Gun 4 | . 1 3 Ballistic Cannon . | . . . Launcher . | . . . Special Weapon . | . . . Impact Weapon . | . . . Slashing Weapon . | . . . Piercing Weapon . | . . . Special Melee Weapon . | . . . Unidentified Prototypes . | . . . Parts Lost 15 | . 5 10 Power 4 | . 1 3 Propulsion 4 | . 2 2 Utility . | . . . Weapon 7 | . 2 5 Highest Loss Streak 9 | . 5 9 To Critical Strikes . | . . . Average Slot Usage (%) 78 | . 93 63 Engine 10 | . 11 8 Treads 9 | . 10 7 Leg 8 | . 15 1 Wheel 2 | . . 4 Storage 12 | . 14 11 Processor 12 | . 13 11 Energy Gun 18 | . 20 15 Ballistic Gun 4 | . 5 4 Naked Turns . | . . . Heaviest Build 30 | 11 11 30 Greatest Support 40 | 20 40 26 Greatest Overweight (x) 2 | . 2 2 Average Overweight (x) . | . . . Largest Inventory Capacity 15 | 8 8 15 Average Capacity 10 | 8 8 14 Most Carried 7 | 6 7 6 Average Carried 4 | 6 4 4 Final Capacity 15 | 8 8 15 Final Carried 6 | 6 3 2 Class Distribution -------------------- 100% | Mutant Dominant Class ---------------- Mutant | -10/Materials Mutant | -9/Materials Resources | -11 -10 -9 ----------- Run | Yrd Mat Mat Matter Collected 419 | 200 70 149 Remotely . | . . . Salvage Created 756 | . 291 465 Parts 52 | . 18 34 Haulers Intercepted . | . . . Recyclers Shooed . | . . . Parts Field Recycled . | . . . Retrieved Matter . | . . . Parts Self-Destructed . | . . . Prevented . | . . . Kills | -11 -10 -9 ------- Run | Yrd Mat Mat Combat Hostiles Destroyed 20 | . 8 12 Guns 20 | . 8 12 Classes Destroyed 6 | . 3 3 Worker 2 | . . 2 Mechanic 1 | . . 1 Watcher 2 | . 1 1 Swarmer 9 | . 3 6 Grunt 8 | . 5 3 Sentry 3 | . . 3 Best Kill Streak 9 | . 8 9 Combat Bots Only 8 | . 8 5 Max Kills in Single Turn 2 | . 1 2 Gunslinging . | . . . Exploded . | . . . Melee . | . . . Uniques/NPCs Destroyed . | . . . Combat | -11 -10 -9 -------- Run | Yrd Mat Mat Hostile Shots Fired 237 | . 90 147 Missed 59 | . 23 36 Damage Taken 1909 | . 652 1257 Core 550 | . 142 408 Absorbed by Shields . | . . . Core Remaining (%) 71 | 100 43 . Volleys Fired 74 | . 34 40 Largest 2 | . 2 2 Hottest 115 | . 90 115 Shots Fired 114 | . 48 66 Gun 114 | . 48 66 Cannon . | . . . Launcher . | . . . Special . | . . . Kinetic 32 | . 15 17 Thermal 82 | . 33 49 Explosive . | . . . Electromagnetic . | . . . Robot Hit Streak 11 | . 5 11 Robot Miss Streak 3 | . 3 3 Penetration Max . | . . . Secondary Targets 5 | . 1 4 Max Gunslinging Chain 1 | . 1 1 Shots Hit Robots 75 | . 30 45 Core Hits 39 | . 14 25 Critical Kills . | . . . Critical Parts Destroyed . | . . . Critical Strikes 2 | . 1 1 Burn 2 | . 1 1 Melee Attacks . | . . . Impact . | . . . Slashing . | . . . Piercing . | . . . Sneak Attacks . | . . . Combat Hostiles . | . . . Follow-up Attacks . | . . . Damage Inflicted 940 | . 350 590 Guns 940 | . 350 590 Cannons . | . . . Explosions . | . . . Melee . | . . . Ramming . | . . . Kinetic 212 | . 82 130 Thermal 728 | . 268 460 Explosive . | . . . Electromagnetic . | . . . Impact . | . . . Slashing . | . . . Piercing . | . . . Highest Corruption . | . . . Average Corruption . | . . . Corruption Purged . | . . . Corruption Blocked . | . . . Overload Shots . | . . . Overflow Damage . | . . . Projectiles . | . . . Explosions . | . . . Melee . | . . . Knockbacks . | . . . Impact . | . . . Kinetic . | . . . Secondary . | . . . Self-Inflicted Damage . | . . . Shots . | . . . Rammed . | . . . Targets Rammed . | . . . Kicked . | . . . Crushed . | . . . Highest Temperature 277 | . 129 277 Average Temperature 70 | . 50 84 Received Heat Transfer 606 | . 186 420 Effects 1 | . . 1 Energy Bleed 1 | . . 1 Siege Activations . | . . . Robots Corrupted . | . . . Combat Hostiles . | . . . Parts Fried . | . . . Impact Corruptions . | . . . Robots Melted . | . . . Combat Hostiles . | . . . Parts Melted 3 | . . 3 Heat Transferred 2030 | . 804 1226 Parts Sabotaged . | . . . Parts Stolen . | . . . Parts Stripped . | . . . Power Chain Reactions . | . . . Alert | -11 -10 -9 ------- Run | Yrd Mat Mat Peak Influence 316 | . 162 316 Initial 68 | . . 68 Average 105 | . 65 161 Maximum Alert Level 1 | . . 1 Low Security (%) 83 | 100 100 63 Level 1 16 | . . 36 Level 2 . | . . . Level 3 . | . . . Level 4 . | . . . Level 5 . | . . . High Security . | . . . Max Security . | . . . Squads Dispatched 1 | . 1 . Investigation 1 | . 1 . Extermination . | . . . Reinforcement . | . . . Assault . | . . . Garrison . | . . . Intercept . | . . . Searches Triggered . | . . . Construction Impeded . | . . . Haulers Reinforced . | . . . Active Scanning Responses . | . . . Cargo Convoy Interrupts . | . . . Stealth | -11 -10 -9 --------- Run | Yrd Mat Mat Distress Signals 1 | . . 1 Communications Jammed . | . . . Distress Signals . | . . . Times Spotted 26 | . 10 16 Peak Tracking Total 9 | . 9 4 Tactical Retreats . | . . . Traps | -11 -10 -9 ------- Run | Yrd Mat Mat Traps Triggered 2 | . 2 . Indirectly . | . . . Trap Hack Attempts . | . . . Triggered . | . . . Disarmed . | . . . Reprogrammed . | . . . Reused . | . . . Traps Extracted . | . . . Installed . | . . . Triggered . | . . . Machines | -11 -10 -9 ---------- Run | Yrd Mat Mat Machines Disabled . | . . . Max in Single Turn . | . . . Machines Repaired . | . . . Machines Dismantled . | . . . Machines Sabotaged . | . . . Overloaded Fab Kills . | . . . Hacking | -11 -10 -9 --------- Run | Yrd Mat Mat Machines Accessed . | . . . Terminals . | . . . Fabricators . | . . . Repair Stations . | . . . Recycling Units . | . . . Scanalyzers . | . . . Garrison Access . | . . . Total Hacks . | . . . Successful . | . . . Failed . | . . . Catastrophic . | . . . Database Lockouts . | . . . Manual . | . . . Terminals . | . . . Fabricators . | . . . Repair Stations . | . . . Recycling Units . | . . . Scanalyzers . | . . . Garrison Access . | . . . Terminal Hacks . | . . . Fabricator Hacks . | . . . Repair Station Hacks . | . . . Recycling Unit Hacks . | . . . Scanalyzer . | . . . Garrison Access Hacks . | . . . Unauthorized Hacks . | . . . Terminals . | . . . Fabricators . | . . . Repair Stations . | . . . Recycling Units . | . . . Scanalyzers . | . . . Garrison Access . | . . . Data Cores Recovered . | . . . Used . | . . . Hacking Detections . | . . . Full Trace Events . | . . . Feedback Events . | . . . Feedback Blocked . | . . . Robot Schematics Acquired . | . . . Robots Built . | . . . Authchips . | . . . Time . | . . . Total Robot Build Rating . | . . . Part Schematics Acquired . | . . . Parts Built . | . . . Authchips . | . . . Time . | . . . Total Part Build Rating . | . . . Parts Repaired . | . . . Time . | . . . Parts Recycled . | . . . Recycled Matter . | . . . Retrieved Matter . | . . . Retrieved Components . | . . . Parts Scanalyzed . | . . . Part Schematics Acquired . | . . . Parts Damaged . | . . . Bothacking | -11 -10 -9 ------------ Run | Yrd Mat Mat Used RIF Installer . | . . . Robots Hacked . | . . . Non-combat . | . . . Combat . | . . . Robot Hacks Applied . | . . . Relay Couplers Released . | . . . Fabnet Peak Effective % . | . . . Robots Rewired . | . . . Allies Hacked . | . . . Hacks Repelled . | . . . Allies | -11 -10 -9 -------- Run | Yrd Mat Mat Total Allies . | . . . Largest Group . | . . . Highest-Rated Group . | . . . Highest-Rated Ally . | . . . Total Orders . | . . . Ally Attacks . | . . . Total Damage . | . . . Kills . | . . . Allies Corrupted . | . . . Allies Melted . | . . . Intel | -11 -10 -9 ------- Run | Yrd Mat Mat Robot Analysis Total . | . . . Derelict Logs Recovered . | . . . Drone Launches . | . . . Drone Recoveries . | . . . Exploration | -11 -10 -9 ------------- Run | Yrd Mat Mat Turns Passed 699 | 41 340 318 Spaces Moved 300 | 27 189 84 Core 2 | . 2 . Treads 133 | . 58 75 Legs 160 | 27 129 4 Wheels 5 | . . 5 Hover . | . . . Flight . | . . . Fastest Speed 90 | 120 120 90 Average Speed 156 | 120 132 220 Slowest Speed 260 | 120 160 260 Overloaded Moves . | . . . Propulsion Burnouts . | . . . Robots Hopped . | . . . Cave-ins Triggered . | . . . Exploration Rate (%) 18 | 3 38 14 Regions Visited 2 Branch Regions . Pre-discovered Areas . | . . . Known Exits Taken 1 | . 1 . Unknown Exits Taken 1 | 1 . . Scrap Searched . | . . . Spaces Dug . | . . . Terrain Destroyed . | . . . Melee . | . . . Projectile . | . . . AOE . | . . . Terrain Rammed . | . . . Walls Destroyed . | . . . Machines Disabled . | . . . Actions | -11 -10 -9 --------- Run | Yrd Mat Mat Total 420 | 35 234 151 Wait 12 | 9 3 . Move 298 | 26 188 84 Hop . | . . . Pick Up 13 | . 3 10 Fast Attach . | . . . Attach 16 | . 6 10 Detach . | . . . Swap 7 | . . 7 Drop . | . . . Fire 74 | . 34 40 Melee . | . . . Ram . | . . . Kick . | . . . Crush . | . . . Escape Stasis . | . . . Rewire . | . . . Trap . | . . . Miscellaneous . | . . . Route ------- -11/Scrapyard -10/Materials -9/Materials History --------- Turn | Location | Event 8 | -11/Scrapyard | Discovered new exit (range 3) 42 | -11/Scrapyard | Entered Materials 112 | -10/Materials | Discovered new exit (range 10) 251 | -10/Materials | Core integrity fell below 50% 298 | -10/Materials | Lost 5 parts (1p2n2w) 308 | -10/Materials | Destroyed 8 combat bots 314 | -10/Materials | Build established: Mutant 379 | -10/Materials | Identified exit to Materials 382 | -10/Materials | Entered another Materials area 382 | -9/Materials | Evolved 2 slots: Power x2 610 | -9/Materials | Core integrity fell below 50% 665 | -9/Materials | Core integrity fell below 20% 700 | -9/Materials | Destroyed by G-34 Mercenary with Small Laser Last Messages --------------- R-06 Scavenger collects Lgt. Ion Engine. R-06 Scavenger collects Lgt. Armor Plating. U-05 Engineer builds a Door. Wheel destroyed. Acquired 12 matter. Acquired Imp. Ion Engine. Acquired 43 matter. G-34 Mercenary destroyed. Switching to secondary target: G-34 Mercenary. Acquired 1 matter. Lgt. Assault Rifle destroyed. Acquired 10 matter. Acquired Aluminum Leg. Lgt. Treads destroyed. Acquired Aluminum Leg. Particle Gun destroyed. Acquired 20 matter. Acquired Hvy. Assault Rifle. S-10 Pest destroyed. Acquired 13 matter. Map ----- +----------------------------------------------------+ | ?????##### # #?????????????????????????? | | ?????##! # """ #?????????????????????????? | | ?????#! # """ #?????????????????????????? | | ?????# + """ ]#?????????????????????????? | | ?????#! # ![]#?????????????????????????? | | ?????#! # ![ #?????????????????????????? | | ?????##! # #?????????????????????????? | | ??????#### ###########?????????????????????????? | | ?????????# #???????????????????????????????????? | | ?????????# #???????????????????????????????????? | | ??######## #???????????????????????????????????? | | ??# #???????????????????????????????????? | | ??# #???????######+#+#??????????????????? | | ??# ] """ #???????# #??????????????????? | | ??# R" #??????? +??????????????????? | | ??# """ #??????## T #??????????????????? | | ??# # ## #??????????????????? | | ?## + ## #??????????????????? | | ?#" [[[ # ## | #??????????????????? | | ?#T [[ * # ## #??????????????????? | | ?#" [[ %######### """ #??????????????????? | | ?## """ #??????????????????? | | ?# =*"*"= #??????????????????? | | ?+ = %=!%!== #??????????????????? | | ?# %!=*=!=g% # #??????? | | ?### ! !%@g= a/ #??????? | | ???# ######+############+## # #??????? | | ???# ?????????????????? %#? #???#####??????????? | | ???#???????????????????" #?? #?????????????????? | | ??????????????????????"" #??? ????????????????? | | ??????????????????????"" #???? ??????????????? | | ?????????????????????""" #????? ?????????????? | | ?????????????????????""" #??????#### ???????????? | | ??????????????????????? #??????????? ??????????? | | ??????????????????????? #???????????????????????? | | ???????????????????????##????????????????????????? | | ?????????????????????????????????????????????????? | | ?????????????????????????????????????????????????? | | ?????????????????????????????????????????????????? | | ?????????????????????????????????????????????????? | | ?????????????????????????????????????????????????? | | ?????????????????????????????????????????????????? | | ?????????????????????????????????????????????????? | | ?????????????????????????????????????????????????? | | ?????????????????????????????????????????????????? | | ?????????????????????????????????????????????????? | | ?????????????????????????????????????????????????? | | ?????????????????????????????????????????????????? | | ?????????????????????????????????????????????????? | | ?????????????????????????????????????????????????? | +----------------------------------------------------+ Best States ------------- Heat Dissipation 28 Energy Generation 15 Energy Capacity 265 Matter Stores 300 Matter Capacity 300 Sight Range 18 Terrain Scan Density 10 Evasion (%) 55 Recoil Reduction 2 Item Schematics ----------------- None Robot Schematics ------------------ None Fabricated ------------ Nothing Alien Tech Used ----------------- None Achievements -------------- None Challenges ------------ None Game ------ Seed CloakingIntegratedSpoofer Manual? 0 Play Time 00:10:50 Cumulative 4.5 hours Start 2024.05.01 @ 17:32:20 End 2024.05.01 @ 17:42:46 Sessions 1 Manual Loads 0 Difficulty Rogue Special Mode None Game No. 9 Rogue 9 Adventurer 0 Explorer 0 Win Type - Total 0 Types 0/0/0/0/0/0/0/0/0 Lore% 5 Gallery% 10 Achievement% 11 Wizard Run 0 Options --------- Layout 1 ASCII 0 Keyboard 0 Movement Mouse Keybinds 0 Fullscreen 1 Font 24/Terminus Map View 50x35 Zoom Use 0% Tactical HUD 0 Map Filters NONE Filters NONE Steam 1 RUN: 51c8a9d7-dfe0-4bac-940a-df39925638ea